bitfinex/quotes_ETHUSD_20240823
["timestamp","ask_amount","ask_price","bid_price","bid_amount"]
[1724404281007,2.2571,2676.0,2675.7,0.06833357]
[1724404282608,5.99402,2676.0,2675.7,0.06833357]
[1724404283252,3.73707,2675.9,2675.7,0.06833357]
[1724404283451,7.47424,2675.9,2675.4,4.83711711]
[1724404283655,3.73707,2675.9,2675.8,0.0682673]
[1724404283814,3.73707,2675.9,2675.4,24.25711711]
[1724404284156,3.73707,2675.9,2675.8,0.0681434]
[1724404284355,3.73707,2675.9,2675.4,24.25711711]
[1724404284621,3.73707,2675.9,2675.4,27.99479711]
[1724404284921,7.47421,2675.9,2675.5,0.06834224]
[1724404285086,3.73736,2675.7,2675.5,0.06834224]
[1724404285701,3.7372,2675.8,2675.5,0.06834224]
[1724404286424,3.73707,2675.9,2675.5,0.06834224]
[1724404297642,7.47421,2675.9,2675.5,0.06834224]
[1724404297838,3.73707,2675.9,2675.5,0.06834224]
[1724404299096,3.73722,2675.8,2675.5,0.06834224]
[1724404299388,6.21217,2675.6,2675.5,0.06834224]
[1724404299660,6.21217,2675.6,2675.3,19.42]
[1724404299808,6.21217,2675.6,2675.5,0.06413305]
[1724404300128,6.21217,2675.6,2675.4,0.06419934]
[1724404300303,6.21217,2675.6,2675.5,0.06413305]
[1724404300722,6.21217,2675.6,2675.3,19.42]
[1724404300918,6.21217,2675.6,2675.5,0.06413305]
[1724404300919,2.4747,2675.6,2675.5,0.06413305]
[1724404301119,2.4747,2675.6,2675.4,0.06419934]
[1724404301288,2.4747,2675.6,2675.5,0.06413305]
[1724404301727,2.4747,2675.6,2675.1,13.57238]
[1724404301925,2.4747,2675.6,2675.5,0.06413305]
[1724404302130,2.4747,2675.6,2675.1,13.57238]
[1724404302316,2.4747,2675.6,2675.5,0.06413305]
[1724404302517,2.4747,2675.6,2675.1,17.31048]
[1724404302693,2.4747,2675.6,2675.5,0.06413305]
[1724404303230,6.21217,2675.6,2675.1,13.57238]
[1724404303464,6.21217,2675.6,2675.5,0.06413305]
[1724404303621,3.73786,2675.4,2675.0,19.42]
[1724404303807,3.73786,2675.4,2675.0,20.51950711]
[1724404304130,3.73728,2675.8,2675.1,2.3569]
[1724404304335,3.73727,2675.8,2675.3,3.73786]
[1724404306005,2.4206,2675.7,2675.0,19.42]
[1724404306220,2.4206,2675.7,2675.0,23.15831]
[1724404306221,3.73769,2675.5,2675.0,23.15831]
[1724404307622,3.73769,2675.5,2675.0,27.99612711]
[1724404307822,3.73769,2675.5,2675.0,24.25781711]
[1724404308395,3.73769,2675.5,2675.0,23.15831]
[1724404309696,2.4768,2676.0,2675.3,1.09950711]
[1724404310039,3.73715,2675.9,2675.3,4.83738711]
[1724404310218,3.73715,2675.9,2675.4,3.73771]
[1724404311116,3.73715,2675.9,2675.5,0.06229703]
[1724404311454,4.732217,2675.9,2675.5,0.06229703]
[1724404311951,8.469377,2675.9,2675.5,0.06229703]
[1724404312254,8.469357,2675.9,2675.5,0.06229703]
[1724404312458,4.732217,2675.9,2675.5,0.06229703]
[1724404313267,8.469357,2675.9,2675.5,0.06229703]
[1724404313428,1.20456641,2675.8,2675.5,0.06229703]
[1724404316956,4.94176641,2675.8,2675.5,0.06229703]
[1724404319544,2.4947,2675.7,2675.5,0.06229703]
[1724404326637,2.4947,2675.7,2675.3,3.73789]
[1724404326837,2.4947,2675.7,2675.6,0.06144133]
[1724404327037,2.4947,2675.7,2675.3,3.73789]
[1724404327266,2.4947,2675.7,2675.4,0.0615739]
[1724404331297,3.117892,2675.7,2675.4,0.0615739]
[1724404331655,3.117892,2675.7,2675.1,3.7381]
[1724404331887,2.4947,2675.7,2675.1,3.7381]
[1724404332186,2.4947,2675.7,2675.3,3.73788]
[1724404332494,6.23206,2675.7,2675.4,0.05818311]
[1724404332653,9.96948,2675.7,2675.4,0.05818311]
[1724404332980,9.96949,2675.7,2675.2,3.73803]
[1724404333287,6.23206,2675.7,2675.5,0.05816837]
[1724404333580,7.20925117,2675.7,2675.2,3.73803]
[1724404333783,6.23206,2675.7,2675.6,0.05810208]
[1724404333941,6.07006,2676.1,2675.4,3.73775]
[1724404334138,6.07006,2676.1,2675.6,4.89506919]
[1724404334139,6.07005,2676.1,2675.6,4.89506919]
[1724404334371,6.07005,2676.1,2675.6,4.83696711]
[1724404334584,3.73699,2676.0,2675.7,0.05806158]
[1724404338898,2.3332,2676.1,2675.7,0.05806158]
[1724404339270,2.3332,2676.1,2675.7,3.79538158]
[1724404339798,3.73678,2676.2,2675.7,6.25218158]
[1724404341854,4.109585,2676.7,2675.7,6.25218158]
[1724404341855,3.73627,2676.5,2675.8,1.09950711]
[1724404342176,3.73636,2676.4,2676.0,1.09950711]
[1724404342701,3.73636,2676.4,2676.1,0.05745119]
[1724404343068,6.04497,2676.5,2676.1,0.05745119]
[1724404343069,3.73653,2676.3,2676.1,0.05745119]
[1724404343501,7.47312,2676.3,2675.8,4.83669711]
[1724404343662,3.73653,2676.3,2676.2,0.05738494]
[1724404343861,3.73653,2676.3,2675.9,3.73706]
[1724404344055,3.73653,2676.3,2676.2,0.05738494]
[1724404344277,3.73653,2676.3,2675.9,3.73706]
[1724404344476,3.73653,2676.3,2676.2,0.05738494]
[1724404344703,3.73653,2676.3,2675.9,3.73706]
[1724404344909,3.73653,2676.3,2676.2,0.05738494]
[1724404345114,3.73653,2676.3,2675.9,3.73706]
[1724404345311,3.73653,2676.3,2676.2,0.05738494]
[1724404345514,3.73653,2676.3,2675.9,3.73706]
[1724404345713,3.73653,2676.3,2676.2,0.05738494]
[1724404345898,3.73653,2676.3,2675.8,1.09950711]
[1724404346099,3.73653,2676.3,2676.2,0.05738494]
[1724404346300,7.47312,2676.3,2675.8,4.83667711]
[1724404346503,3.73653,2676.3,2676.2,0.05738494]
[1724404346799,3.73653,2676.3,2675.8,4.83667711]
[1724404347169,7.47311,2676.3,2675.8,4.83667711]
[1724404347373,7.47311,2676.3,2675.9,0.05758372]
[1724404347621,7.47313,2676.3,2675.9,0.05758372]
[1724404348140,3.73665,2676.2,2675.9,0.05758372]
[1724404349546,3.73678,2676.1,2675.9,0.05758372]
[1724404349908,3.73678,2676.1,2675.7,7.29360711]
[1724404350111,3.73678,2676.1,2676.0,0.05751745]
[1724404350312,3.73678,2676.1,2675.7,7.29360711]
[1724404350516,3.73678,2676.1,2676.0,0.05751745]
[1724404350694,3.73678,2676.1,2675.7,7.29360711]
[1724404350895,3.73678,2676.1,2676.0,0.05751745]
[1724404351129,3.73678,2676.1,2675.7,7.29360711]
[1724404351441,3.73678,2676.1,2676.0,0.05751745]
[1724404351895,3.73678,2676.1,2675.7,7.29360711]
[1724404352412,3.73678,2676.1,2675.8,0.05764999]
[1724404352740,2.3255,2676.0,2675.4,7.36]
[1724404352948,10.03189,2676.0,2675.9,0.05758372]
[1724404353101,10.03189,2676.0,2675.5,1.09950711]
[1724404353102,3.73722,2675.8,2675.5,1.09950711]
[1724404353300,3.73722,2675.8,2675.5,20.51950711]
[1724404353949,3.73722,2675.8,2675.6,0.05773617]
[1724404354816,9.79947,2676.0,2675.6,0.05773617]
[1724404356033,6.11722,2676.4,2675.9,1.09950711]
[1724404356227,6.11722,2676.4,2676.0,0.05743501]
[1724404357847,3.73642,2676.4,2676.0,0.05743501]
[1724404359435,3.73642,2676.4,2675.8,4.83660711]
[1724404359738,3.7365,2676.3,2675.9,0.05748582]
[1724404361033,3.73642,2676.4,2675.9,0.05748582]
[1724404361034,7.47288,2676.4,2675.9,3.79452582]
[1724404361221,3.73642,2676.4,2675.9,3.79452582]
[1724404361415,3.73632,2676.5,2676.0,10.11063711]
[1724404361631,3.73632,2676.5,2676.1,3.0573533]
[1724404362220,9.91407,2676.7,2676.2,4.83612711]
[1724404362419,6.17802,2676.7,2676.3,0.05722079]
[1724404362603,6.17802,2676.7,2676.2,4.83612711]
[1724404362830,6.17802,2676.7,2676.3,0.05712289]
[1724404363033,6.17802,2676.7,2676.2,8.57269711]
[1724404363205,6.17802,2676.7,2676.3,0.05712289]
[1724404363404,3.73581,2676.8,2676.3,3.7365]
[1724404363651,3.73581,2676.8,2676.4,0.05705665]
[1724404364741,6.17775,2676.9,2676.4,6.06771665]
[1724404365757,9.91355,2676.9,2676.4,6.06771665]
[1724404365952,6.17775,2676.9,2676.4,6.06771665]
[1724404366848,9.91349,2676.9,2676.4,6.06771665]
[1724404367042,6.17774,2676.9,2676.4,6.06771665]
[1724404370471,3.0,2677.6,2676.4,6.06771665]
[1724404370472,3.73485,2677.5,2676.9,3.73553]
[1724404370649,6.58644673,2677.7,2677.2,3.73516]
[1724404370860,6.19553,2677.7,2677.4,1.09950711]
[1724404371062,2.4609,2677.7,2677.5,0.05586977]
[1724404371881,2.4609,2677.7,2677.2,4.83466711]
[1724404372047,3.453874,2677.7,2677.6,0.05578298]
[1724404372236,3.453874,2677.7,2677.4,1.09950711]
[1724404372437,3.453874,2677.7,2677.5,0.05584916]
[1724404374242,0.992974,2677.7,2677.5,0.05584916]
[1724404375469,3.73451,2677.8,2677.5,0.05584916]
[1724404375834,3.73456,2677.7,2677.5,0.05584916]
[1724404376038,7.46918,2677.7,2677.5,0.05584916]
[1724404376279,3.73456,2677.7,2677.2,1.09950711]
[1724404376437,3.73456,2677.7,2677.6,0.05578298]
[1724404376641,4.7307,2677.7,2677.2,1.09950711]
[1724404376839,4.7307,2677.7,2677.3,0.05598155]
[1724404377044,4.7307,2677.7,2677.2,1.09950711]
[1724404377373,4.7307,2677.7,2677.3,0.05598155]
[1724404377760,4.7307,2677.7,2677.2,1.09950711]
[1724404377941,4.7307,2677.7,2677.4,0.05591535]
[1724404378143,4.7307,2677.7,2677.3,0.05598155]
[1724404378366,4.7307,2677.7,2677.5,0.05584916]
[1724404378557,4.7307,2677.7,2677.4,0.05591535]
[1724404378786,4.7307,2677.7,2677.6,0.05578298]
[1724404379323,4.7307,2677.7,2677.2,1.09950711]
[1724404379522,3.73456,2677.7,2677.6,0.05578298]
[1724404379678,3.73456,2677.7,2677.2,1.09950711]
[1724404379876,3.73456,2677.7,2677.6,0.05578298]
[1724404380216,3.73456,2677.7,2677.2,1.09950711]
[1724404380380,3.73456,2677.7,2677.6,0.05578298]
[1724404380580,2.3566,2677.6,2677.2,1.09950711]
[1724404380877,1.09950711,2677.4,2676.7,3.73586]
[1724404381082,1.09950711,2677.4,2676.5,10.27569711]
[1724404381083,3.73532,2677.2,2676.5,10.27569711]
[1724404381313,3.73543,2677.1,2676.5,7.27569711]
[1724404381518,3.73543,2677.1,2676.2,7.36]
[1724404381519,3.73595,2676.7,2676.2,2.4401]
[1724404382228,3.73582,2676.8,2676.2,6.17666]
[1724404382380,3.73595,2676.7,2676.2,6.17666]
[1724404383906,7.47153,2676.9,2676.3,3.73646]
[1724404384221,3.73573,2676.9,2676.4,3.73634]
[1724404385020,3.73573,2676.9,2676.3,3.73646]
[1724404385437,9.82758,2677.1,2676.3,3.73646]
[1724404385579,9.82758,2677.1,2676.5,3.73619]
[1724404385784,3.73557,2677.0,2676.5,3.73619]
[1724404386226,3.73557,2677.0,2676.6,0.05384654]
[1724404387928,3.73566,2676.9,2676.6,0.05384654]
[1724404388101,6.1206,2676.8,2676.2,6.17671]
[1724404388282,6.1206,2676.8,2676.7,0.05378031]
[1724404388482,2.3848,2676.8,2675.9,25.62446]
[1724404388785,2.63823759,2677.2,2676.0,0.05424403]
[1724404388786,2.285,2676.4,2676.0,0.05424403]
[1724404389219,2.285,2676.4,2676.0,3.79114403]
[1724404389609,0.285,2676.4,2676.0,3.79114403]
[1724404389813,4.02136,2676.4,2676.0,0.05424403]
[1724404390014,0.285,2676.4,2676.0,0.05424403]
[1724404390217,3.73678,2676.1,2676.0,0.05424403]
[1724404390389,3.73678,2676.1,2675.6,2.358]
[1724404390588,3.73678,2676.1,2675.6,6.09546]
[1724404390802,3.73671,2676.2,2675.7,6.22353]
[1724404391016,3.73639,2676.4,2675.8,3.73712]
[1724404391433,3.73639,2676.4,2675.9,0.05431029]
[1724404393188,3.73639,2676.4,2676.0,2.2718]
[1724404393533,3.73639,2676.4,2676.1,0.05472293]
[1724404395194,3.73589,2676.8,2676.2,3.73661]
[1724404395392,3.73602,2676.7,2676.2,3.73661]
[1724404395591,3.73602,2676.7,2676.3,0.05459043]
[1724404396337,3.73589,2676.8,2676.4,2.54792418]
[1724404397387,3.7356,2677.0,2676.4,2.54792418]
[1724404397937,7.47068,2677.2,2676.6,3.73606]
[1724404398144,3.73534,2677.2,2676.5,3.7361]
[1724404398323,3.73534,2677.2,2676.7,0.05432548]
[1724404398524,3.73534,2677.2,2676.6,2.50349171]
[1724404398696,3.73534,2677.2,2676.8,0.05425925]
[1724404398896,3.73553,2677.0,2676.7,0.05432548]
[1724404400398,3.7354,2677.1,2677.0,0.05412682]
[1724404400595,3.7354,2677.1,2676.6,2.4491]
[1724404400822,3.7354,2677.1,2677.0,0.05412682]
[1724404400991,3.7354,2677.1,2676.6,2.4491]
[1724404401195,3.73534,2677.2,2677.0,0.05412682]
[1724404401393,3.73534,2677.2,2676.7,3.73592]
[1724404401634,3.73534,2677.2,2677.1,0.05406061]
[1724404401951,3.73538,2677.1,2676.6,2.4491]
[1724404402624,3.73568,2676.9,2676.6,2.4491]
[1724404404348,3.73594,2676.7,2676.3,2.3899]
[1724404405262,2.4754,2677.5,2676.4,2.3088]
[1724404405393,0.24754,2677.4,2676.4,2.3088]
[1724404405598,3.73541,2677.1,2676.6,3.73597]
[1724404406149,3.73541,2677.1,2676.5,9.78105]
[1724404406310,3.73541,2677.1,2676.5,9.78106]
[1724404406708,3.73541,2677.1,2676.5,6.04491]
[1724404407308,3.73559,2677.0,2676.5,6.04491]
[1724404409543,3.73524,2677.2,2676.6,9.22947]
[1724404409701,3.73524,2677.2,2676.6,9.22936]
[1724404410042,3.73506,2677.4,2676.8,3.73567]
[1724404410404,3.73506,2677.4,2676.9,3.73561]
[1724404410605,6.14582,2677.5,2676.9,3.73561]
[1724404411555,3.73499,2677.4,2676.9,3.73561]
[1724404411860,2.3992,2677.3,2676.0,2.3742]
[1724404411999,3.73577,2676.9,2676.2,3.73656]
[1724404412199,3.73596,2676.7,2676.0,9.84784]
[1724404412495,7.47199,2676.7,2676.1,3.73675]
[1724404412745,7.47198,2676.7,2676.1,3.73675]
[1724404412945,3.73596,2676.7,2676.1,3.73675]
[1724404414202,3.73575,2676.9,2676.4,3.73636]
[1724404414816,7.47151,2676.9,2676.4,3.73636]
[1724404415021,3.7358,2676.8,2676.3,2.3489]
[1724404416146,3.7358,2676.8,2676.4,0.05305633]
[1724404417553,2.3371,2677.7,2676.4,0.05305633]
[1724404417784,3.73511,2677.3,2676.6,2.4237]
[1724404417988,3.73496,2677.4,2676.8,3.73572]
[1724404418292,3.73496,2677.4,2676.9,0.05265318]
[1724404418650,3.73496,2677.4,2676.9,6.78830318]
[1724404418988,3.73492,2677.5,2676.9,6.78821318]
[1724404419184,3.73492,2677.5,2677.0,6.15574]
[1724404419556,3.73492,2677.5,2677.1,0.05251047]
[1724404419965,0.23371,2677.6,2677.1,3.78787047]
[1724404420301,6.07172,2677.7,2677.1,7.52317047]
[1724404420439,9.80634,2677.7,2677.1,7.52317047]
[1724404420642,9.80634,2677.7,2677.1,3.78781047]
[1724404421994,3.73468,2677.6,2677.1,3.78781047]
[1724404422200,0.98064,2677.6,2677.1,0.05251047]
[1724404422507,3.7349,2677.5,2677.1,0.05251047]
[1724404422696,7.4698,2677.5,2677.1,0.05251047]
[1724404422890,7.46983,2677.5,2677.1,0.05251047]
[1724404423600,3.7349,2677.5,2677.1,0.05251047]
[1724404424089,7.46982,2677.5,2677.1,0.05251047]
[1724404424596,3.7349,2677.5,2677.1,0.05251047]
[1724404425099,3.73462,2677.7,2677.1,3.78789047]
[1724404425544,7.46926,2677.7,2677.2,3.73524]
[1724404425748,3.73462,2677.7,2677.2,3.73524]
[1724404425991,3.73397,2678.2,2677.7,3.73447]
[1724404426184,0.7,2679.4,2677.5,3.73472]
[1724404426185,3.73364,2678.4,2677.9,3.73418]
[1724404426579,3.73364,2678.4,2678.0,0.05150349]
[1724404427351,3.73333,2678.6,2678.1,3.7339]
[1724404427580,7.46669,2678.6,2678.1,3.7339]
[1724404427783,3.73343,2678.5,2678.2,0.05115018]
[1724404428218,3.73357,2678.4,2677.9,3.73423]
[1724404428397,3.73357,2678.4,2678.3,0.05108403]
[1724404428874,3.73357,2678.4,2677.9,3.73423]
[1724404429081,3.73357,2678.4,2678.0,0.0512825]
[1724404430108,3.73334,2678.6,2678.0,0.0512825]
[1724404430308,3.73334,2678.6,2677.8,2.3534]
[1724404430309,3.73399,2678.1,2677.8,2.3534]
[1724404430512,3.73399,2678.1,2677.9,0.05134867]
[1724404431812,3.73412,2678.0,2677.9,0.05134867]
[1724404432186,3.73412,2678.0,2677.5,6.00545]
[1724404432415,3.73412,2678.0,2677.9,0.04959553]
[1724404432886,3.73412,2678.0,2677.5,6.00545]
[1724404433086,3.73412,2678.0,2677.6,0.04979406]
[1724404433495,3.73454,2677.7,2677.6,0.04979406]
[1724404433696,7.46893,2677.8,2677.6,0.04979406]
[1724404434021,3.73454,2677.7,2677.3,2.3168]
[1724404434544,3.73441,2677.8,2677.3,2.3168]
[1724404435550,7.46892,2677.8,2677.3,2.3168]
[1724404435840,3.73441,2677.8,2677.3,2.3168]
[1724404436931,7.4689,2677.8,2677.3,6.05189]
[1724404437276,3.73441,2677.8,2677.3,6.05189]
[1724404437455,3.73458,2677.7,2677.3,2.3168]
[1724404437774,3.73441,2677.8,2677.3,2.3168]
[1724404438525,3.73441,2677.8,2677.3,6.05189]
[1724404438839,3.73441,2677.8,2677.3,2.3168]
[1724404438840,3.73469,2677.6,2677.3,2.3168]
[1724404440386,3.73454,2677.7,2677.3,2.3168]
[1724404440731,3.73447,2677.8,2677.3,2.3168]
[1724404440732,3.7344,2677.8,2677.3,6.0519]
[1724404440953,3.73422,2678.0,2677.3,2.3168]
[1724404441250,3.73422,2678.0,2677.5,3.73479]
[1724404441251,3.73421,2678.0,2677.5,3.73479]
[1724404441459,3.73421,2678.0,2677.7,2.3588]
[1724404442049,3.73421,2678.0,2677.5,6.11052]
[1724404442451,3.73428,2677.9,2677.5,6.11052]
[1724404442637,3.73428,2677.9,2677.5,2.3757]
[1724404443886,3.73443,2677.8,2677.5,2.3757]
[1724404444686,3.73421,2678.0,2677.5,2.3757]
[1724404444886,3.73421,2678.0,2677.5,6.1105]
[1724404445364,7.46842,2678.0,2677.5,6.1105]
[1724404445693,7.46847,2678.0,2677.5,6.1105]
[1724404445987,3.73427,2677.9,2677.5,6.1105]
[1724404446140,3.73427,2677.9,2677.6,0.04957819]
[1724404450594,3.73454,2677.7,2677.6,0.04957819]
[1724404452395,3.73454,2677.7,2677.3,2.3989]
[1724404452556,3.73454,2677.7,2677.6,0.04983513]
[1724404452890,7.46892,2677.8,2677.3,6.13397]
[1724404453040,7.46892,2677.8,2677.6,0.04983513]
[1724404453241,3.73442,2677.8,2677.3,6.13397]
[1724404453446,3.73442,2677.8,2677.7,0.04976895]
[1724404453684,3.73442,2677.8,2677.3,6.13397]
[1724404454088,3.73442,2677.8,2677.4,0.0499675]
[1724404456579,3.73442,2677.8,2677.4,3.7849175]
[1724404456982,3.73409,2678.1,2677.5,2.2878]
[1724404457311,2.3038,2678.4,2677.5,9.75726]
[1724404457312,3.73414,2678.0,2677.5,9.75726]
[1724404457512,3.73414,2678.0,2677.6,0.04994818]
[1724404458201,7.46784,2678.2,2677.6,3.78461818]
[1724404458410,3.73385,2678.2,2677.6,3.78461818]
[1724404458615,7.46779,2678.2,2677.8,2.2844]
[1724404458760,3.73385,2678.2,2677.8,2.2844]
[1724404458958,3.73385,2678.2,2677.9,0.04974966]
[1724404459420,3.73399,2678.1,2677.9,0.04974966]
[1724404459598,3.73385,2678.2,2677.9,0.04974966]
[1724404459915,3.73412,2678.0,2677.9,0.04974966]
[1724404462560,3.73412,2678.0,2677.6,2.3715]
[1724404462768,3.73381,2678.3,2677.9,0.04966743]
[1724404463012,7.46763,2678.3,2677.8,3.73432]
[1724404463221,3.73387,2678.2,2678.0,0.04960127]
[1724404463368,3.73387,2678.2,2677.9,0.04966743]
[1724404463566,7.46765,2678.3,2678.1,0.04953511]
[1724404463912,7.46765,2678.3,2677.8,3.0]
[1724404463913,3.73381,2678.3,2678.0,0.04960127]
[1724404464097,3.73381,2678.3,2678.2,0.04946895]
[1724404464283,3.73381,2678.3,2678.1,0.04953511]
[1724404464483,3.73351,2678.5,2678.2,0.04946895]
[1724404464693,7.46706,2678.5,2678.2,0.04946895]
[1724404464914,3.73349,2678.5,2678.2,0.04946895]
[1724404465564,3.73316,2678.7,2678.3,2.4156]
[1724404465763,3.73316,2678.7,2678.3,6.14931]
[1724404465964,3.73316,2678.7,2678.4,0.04915168]
[1724404466201,3.73301,2678.8,2678.4,0.04915168]
[1724404468521,3.73301,2678.8,2678.4,3.78269168]
[1724404469110,3.73287,2679.0,2678.4,3.78269168]
[1724404470130,3.73292,2678.9,2678.4,3.78269168]
[1724404470615,3.73198,2679.6,2678.7,2.3002]
[1724404470773,3.73198,2679.6,2679.1,6.0327]
[1724404471414,3.7317,2679.8,2679.2,3.78035456]
[1724404471617,0.60938,2679.7,2679.2,3.78035456]
[1724404472618,4.34121,2679.7,2679.2,0.04794456]
[1724404472916,3.73231,2679.3,2679.2,0.04794456]
[1724404473133,3.73231,2679.3,2678.8,6.18889]
[1724404473268,3.7322,2679.4,2678.8,6.18889]
[1724404473474,3.7322,2679.4,2678.9,0.0481429]
[1724404474216,3.7322,2679.4,2678.9,3.7810029]
[1724404474371,3.73235,2679.3,2678.9,0.0481429]
[1724404475829,3.73206,2679.5,2678.9,0.0481429]
[1724404476117,3.73206,2679.5,2679.0,3.73271]
[1724404476286,3.73206,2679.5,2679.1,2.3086]
[1724404476469,3.73206,2679.5,2679.1,2.35661067]
[1724404477902,3.73191,2679.6,2679.1,6.08919067]
[1724404478276,3.73183,2679.7,2679.2,3.73243]
[1724404478622,3.73183,2679.7,2679.3,0.04787846]
[1724404478977,3.73183,2679.7,2679.2,3.73243]
[1724404479178,3.73183,2679.7,2679.4,0.04781236]
[1724404479397,7.46371,2679.7,2679.3,0.04787846]
[1724404479617,3.73183,2679.7,2679.5,0.04774627]
[1724404479800,3.73183,2679.7,2679.4,0.04781236]
[1724404480131,3.73183,2679.7,2679.5,0.04774627]
[1724404480629,3.73183,2679.7,2679.6,0.0462407]
[1724404480975,3.73183,2679.7,2679.2,3.73243]
[1724404481173,3.73183,2679.7,2679.6,0.0462407]
[1724404481423,3.73183,2679.7,2679.2,3.73243]
[1724404482040,3.73183,2679.7,2679.3,0.04600771]
[1724404482382,3.73183,2679.7,2679.2,3.73243]
[1724404482689,3.73183,2679.7,2679.4,0.04594161]
[1724404482898,3.73173,2679.8,2679.3,0.04600771]
[1724404483091,3.73173,2679.8,2679.5,0.04587552]
[1724404483420,3.73184,2679.7,2679.6,0.04580943]
[1724404483828,3.73184,2679.7,2679.2,3.73243]
[1724404484120,3.73184,2679.7,2679.6,0.04580943]
[1724404484317,3.73198,2679.6,2679.1,6.04119]
[1724404485083,3.73184,2679.7,2679.2,3.73243]
[1724404486579,7.46372,2679.7,2679.2,3.73243]
[1724404486884,3.73184,2679.7,2679.2,3.73243]
[1724404488022,3.73184,2679.7,2679.3,2.3018]
[1724404488322,3.73158,2679.9,2679.3,2.3018]
[1724404489017,3.73158,2679.9,2679.4,3.73214]
[1724404490924,3.73158,2679.9,2679.4,7.46424]
[1724404491122,3.73158,2679.9,2679.5,0.04544938]
[1724404491758,3.73158,2679.9,2679.5,3.77747938]
[1724404492258,3.73158,2679.9,2679.5,0.04544938]
[1724404493035,2.2868,2679.8,2679.5,0.04544938]
[1724404493346,3.73176,2679.7,2679.1,2.334]
[1724404493662,3.73176,2679.7,2679.2,0.04546802]
[1724404493663,3.7319,2679.6,2679.2,0.04546802]
[1724404493819,2.2868,2679.8,2679.2,0.04546802]
[1724404493820,7.46462,2679.3,2679.2,0.04546802]
[1724404494224,3.73287,2678.9,2678.8,7.36]
[1724404494536,3.73287,2678.9,2678.5,21.754]
[1724404497636,7.46584,2678.9,2678.5,21.754]
[1724404497832,3.73287,2678.9,2678.5,2.334]
[1724404498258,7.46583,2678.9,2678.5,2.334]
[1724404498625,3.73287,2678.9,2678.5,2.334]
[1724404499261,7.46583,2678.9,2678.5,2.334]
[1724404501667,3.73308,2678.8,2678.5,2.334]
[1724404502152,3.73308,2678.8,2678.3,6.1335]
[1724404503942,3.73287,2678.9,2678.4,3.73356]
[1724404504659,7.46585,2678.9,2678.4,3.73356]
[1724404505568,3.73301,2678.8,2678.4,3.73356]
[1724404506046,3.73287,2678.9,2678.5,0.04678819]
[1724404506047,3.73316,2678.7,2678.5,0.04678819]
[1724404506451,3.73316,2678.7,2678.3,2.3998]
[1724404506648,3.73316,2678.7,2678.6,0.04672205]
[1724404506845,3.73316,2678.7,2678.3,2.3998]
[1724404507090,7.46587,2678.9,2678.6,0.04672205]
[1724404507291,7.46587,2678.9,2678.3,6.13349]
[1724404507432,7.46583,2678.9,2678.7,0.04665592]
[1724404507637,7.46583,2678.9,2678.3,6.13349]
[1724404507638,3.73287,2678.9,2678.3,6.13349]
[1724404507854,3.73287,2678.9,2678.8,0.04658979]
[1724404508052,3.73287,2678.9,2678.3,6.13349]
[1724404508254,3.73287,2678.9,2678.8,0.04658979]
[1724404508577,3.73301,2678.8,2678.3,6.13349]
[1724404508951,3.73301,2678.8,2678.4,0.04685433]
[1724404509434,3.73301,2678.8,2678.4,3.78041433]
[1724404510992,3.73301,2678.8,2678.4,0.04685433]
[1724404512694,3.73317,2678.7,2678.4,0.04685433]
[1724404512864,3.73301,2678.8,2678.4,0.04685433]
[1724404512865,3.73298,2678.9,2678.4,0.04685433]
[1724404513212,3.73371,2678.3,2678.2,7.36]
[1724404513497,3.73371,2678.3,2678.1,19.42]
[1724404514003,3.73425,2678.0,2677.7,7.36]
[1724404514569,3.73399,2678.1,2677.7,7.36]
[1724404516407,3.73394,2678.2,2677.8,3.7344]
[1724404516707,3.73358,2678.4,2677.9,2.4098]
[1724404517008,3.73373,2678.3,2677.9,2.4098]
[1724404517458,2.2715,2679.3,2678.1,2.4098]
[1724404517655,2.2715,2679.3,2678.5,3.73336]
[1724404517656,3.7328,2679.0,2678.5,3.73336]
[1724404517985,3.73259,2679.1,2678.6,3.73328]
[1724404519267,3.73274,2679.0,2678.5,3.73342]
[1724404520298,3.73274,2679.0,2678.4,3.73347]
[1724404520490,7.46612,2678.8,2678.3,2.4098]
[1724404520671,3.73302,2678.8,2678.3,2.4098]
[1724404521000,3.73302,2678.8,2678.3,6.1435]
[1724404521208,3.73302,2678.8,2678.4,0.03747271]
[1724404522082,3.73315,2678.7,2678.4,0.03747271]
[1724404523167,3.73302,2678.8,2678.4,0.03747271]
[1724404523393,7.46611,2678.8,2678.4,0.03747271]
[1724404523668,3.73302,2678.8,2678.4,0.03747271]
[1724404523868,2.4352,2679.3,2678.5,2.4332]
[1724404524066,3.73266,2679.1,2678.6,3.73318]
[1724404524378,3.73276,2679.0,2678.6,0.03734044]
[1724404525006,3.73289,2678.9,2678.6,0.03734044]
[1724404527012,7.46535,2679.1,2678.6,3.77059044]
[1724404527213,3.73267,2679.1,2678.6,3.77059044]
[1724404527713,0.58558227,2679.0,2678.6,3.77059044]
[1724404528769,3.73267,2679.1,2678.6,3.77059044]
[1724404531823,7.46534,2679.1,2678.6,3.77059044]
[1724404532874,3.73267,2679.1,2678.6,3.77059044]
[1724404533204,3.73267,2679.1,2678.6,3.77056044]
[1724404535435,7.46535,2679.1,2678.6,3.77056044]
[1724404535605,3.73275,2679.0,2678.6,3.77056044]
[1724404535804,7.46539,2679.1,2678.6,3.77056044]
[1724404536034,8.455449,2679.1,2678.6,3.77056044]
[1724404537239,3.73276,2679.0,2678.6,3.77056044]
[1724404540231,3.73198,2679.6,2679.0,3.73261]
[1724404540446,3.73164,2679.8,2679.2,3.73244]
[1724404540802,3.73164,2679.8,2679.3,0.04421114]
[1724404541003,3.73164,2679.8,2679.2,3.73244]
[1724404541204,3.73164,2679.8,2679.3,0.04421114]
[1724404541403,3.73164,2679.8,2679.2,3.73244]
[1724404541608,3.73149,2679.9,2679.3,3.77650832]
[1724404541811,3.7314,2680.0,2679.4,2.3215]